bitfinex-derivatives/quotes_BTCF0:USTF0_20241128
["timestamp","ask_amount","ask_price","bid_price","bid_amount"]
[1732811094118,0.2652776,95234.0,95233.0,0.052489]
[1732811094811,0.0974376,95234.0,95233.0,0.052489]
[1732811096313,0.1004376,95234.0,95233.0,0.052489]
[1732811097022,0.1054376,95234.0,95233.0,0.053489]
[1732811097915,0.1054376,95234.0,95233.0,0.052489]
[1732811097916,0.1004376,95234.0,95233.0,0.052489]
[1732811098118,0.1054376,95234.0,95233.0,0.053489]
[1732811098421,0.1054376,95234.0,95233.0,0.001]
[1732811100521,0.1064376,95234.0,95233.0,0.001]
[1732811101116,0.1054376,95234.0,95233.0,0.001]
[1732811101321,0.1054376,95234.0,95233.0,0.053489]
[1732811101823,0.1044376,95234.0,95233.0,0.052489]
[1732811103317,0.0379,95234.0,95233.0,0.052489]
[1732811103525,0.007,95234.0,95233.0,0.052489]
[1732811103916,0.003,95234.0,95233.0,0.052489]
[1732811104123,0.008,95234.0,95233.0,0.053489]
[1732811104610,0.003,95234.0,95233.0,0.055489]
[1732811105013,0.052485,95241.0,95240.0,0.052485]
[1732811105212,0.0140228,95242.0,95233.0,0.003]
[1732811105421,0.052485,95241.0,95240.0,0.052485]
[1732811106711,0.052485,95241.0,95240.0,0.053485]
[1732811107419,0.052485,95241.0,95240.0,0.001]
[1732811108023,0.004,95241.0,95240.0,0.053485]
[1732811108923,0.008,95241.0,95240.0,0.052485]
[1732811109117,0.008,95241.0,95240.0,0.41337391]
[1732811109515,0.004,95241.0,95240.0,0.41337391]
[1732811109720,0.00010697,95247.0,95246.0,0.052482]
[1732811110825,0.01459561,95247.0,95246.0,0.052482]
[1732811111019,0.00010697,95247.0,95246.0,0.052482]
[1732811113122,0.00010697,95247.0,95246.0,0.054482]
[1732811113820,0.00010697,95247.0,95246.0,0.053482]
[1732811114023,0.05258797,95247.0,95246.0,0.053482]
[1732811114416,0.05258797,95247.0,95246.0,0.052482]
[1732811114622,0.00010697,95247.0,95246.0,0.052482]
[1732811115525,0.00110697,95247.0,95246.0,0.052482]
[1732811116025,0.00010697,95247.0,95246.0,0.052482]
[1732811116225,0.00210697,95247.0,95246.0,0.052482]
[1732811116617,0.00210697,95247.0,95241.0,0.04728215]
[1732811116618,0.052484,95244.0,95243.0,0.052483]
[1732811116915,0.052483,95244.0,95243.0,0.052484]
[1732811117119,0.16776,95245.0,95240.0,0.36088891]
[1732811117431,0.052485,95241.0,95240.0,0.36088891]
[1732811117620,0.052485,95241.0,95240.0,8.891e-05]
[1732811118524,0.17787137,95241.0,95240.0,8.891e-05]
[1732811119629,0.052485,95241.0,95240.0,8.891e-05]
[1732811120025,0.056485,95241.0,95240.0,8.891e-05]
[1732811120426,0.056485,95241.0,95240.0,0.00108891]
[1732811120729,0.004,95241.0,95240.0,0.05357391]
[1732811120929,0.004,95241.0,95240.0,0.05257391]
[1732811121128,0.13658918,95241.0,95240.0,0.05357391]
[1732811121331,0.011,95241.0,95240.0,0.05357391]
[1732811121530,0.004,95241.0,95240.0,0.05257391]
[1732811121830,0.02705973,95241.0,95240.0,0.05357391]
[1732811122023,0.013,95241.0,95240.0,0.05357391]
[1732811122217,0.013,95241.0,95240.0,0.05257391]
[1732811122218,0.004,95241.0,95240.0,0.05257391]
[1732811122623,0.15697874,95247.0,95240.0,8.891e-05]
[1732811122831,0.01431026,95247.0,95246.0,0.052482]
[1732811124631,0.01531026,95247.0,95246.0,0.052482]
[1732811125326,0.01631026,95247.0,95246.0,0.052482]
[1732811126230,0.01631026,95247.0,95240.0,8.891e-05]
[1732811126231,0.052485,95241.0,95240.0,8.891e-05]
[1732811127429,0.053485,95241.0,95240.0,8.891e-05]
[1732811128027,0.054485,95241.0,95240.0,8.891e-05]
[1732811128835,0.002,95241.0,95240.0,0.05257391]
[1732811129034,0.002,95241.0,95240.0,0.41337391]
[1732811130229,0.002,95241.0,95240.0,0.60206591]
[1732811130432,0.001,95241.0,95240.0,0.41337391]
[1732811130938,0.01431026,95247.0,95246.0,0.052482]
[1732811132933,0.01431026,95247.0,95246.0,0.2411663]
[1732811133127,0.01431026,95247.0,95246.0,0.052482]
[1732811133633,0.00010697,95247.0,95246.0,0.052482]
[1732811134234,0.05258797,95247.0,95246.0,0.055482]
[1732811134437,0.05358797,95247.0,95246.0,0.055482]
[1732811134934,0.05358797,95247.0,95246.0,0.056482]
[1732811135134,0.00110697,95247.0,95246.0,0.056482]
[1732811135333,0.00010697,95247.0,95246.0,0.053482]
[1732811135528,0.00010697,95247.0,95246.0,0.057482]
[1732811135833,0.00010697,95247.0,95246.0,0.24616096]
[1732811136137,0.00010697,95247.0,95246.0,0.056482]
[1732811136826,0.00010697,95247.0,95246.0,0.24516096]
[1732811137225,0.00010697,95247.0,95246.0,0.24116096]
[1732811137226,0.00210697,95247.0,95246.0,0.24116096]
[1732811137725,0.00010697,95247.0,95246.0,0.24216096]
[1732811137930,0.00010697,95247.0,95246.0,0.054482]
[1732811138327,0.00010697,95247.0,95246.0,0.053482]
[1732811138527,0.00010697,95247.0,95246.0,0.056482]
[1732811140028,0.00010697,95247.0,95246.0,0.053482]
[1732811140233,0.00010697,95247.0,95246.0,0.054482]
[1732811140833,0.00010697,95247.0,95246.0,0.053482]
[1732811141034,0.00010697,95247.0,95246.0,0.052482]
[1732811143536,0.01451196,95252.0,95251.0,0.052479]
[1732811143742,0.12567959,95257.0,95251.0,0.052479]
[1732811143946,0.215752,95265.0,95256.0,0.3608]
[1732811143947,0.12567959,95258.0,95256.0,0.3608]
[1732811144247,0.12567959,95259.0,95258.0,0.052475]
[1732811144943,0.12573467,95261.0,95260.0,0.052474]
[1732811145246,8.424e-05,95264.0,95258.0,0.052475]
[1732811145247,0.12573467,95262.0,95261.0,0.052474]
[1732811145735,8.424e-05,95264.0,95258.0,0.052475]
[1732811145736,8.424e-05,95264.0,95263.0,0.052473]
[1732811147640,0.00308424,95264.0,95263.0,0.052473]
[1732811147938,0.00808424,95264.0,95263.0,0.053473]
[1732811154445,0.00808424,95264.0,95263.0,0.24204416]
[1732811154638,0.00808424,95264.0,95263.0,0.053473]
[1732811154839,0.00808424,95264.0,95263.0,0.06201425]
[1732811155036,0.0308,95279.0,95263.0,0.06201425]
[1732811155037,0.12562326,95278.0,95263.0,0.31553944]
[1732811155246,0.15642326,95279.0,95278.0,0.052464]
[1732811156138,0.0308,95279.0,95278.0,0.052464]
[1732811157651,0.0328,95279.0,95278.0,0.052464]
[1732811157841,0.0348,95279.0,95278.0,0.052464]
[1732811159339,0.004,95279.0,95278.0,0.052464]
[1732811163646,0.004,95279.0,95278.0,0.084364]
[1732811166742,0.004,95279.0,95278.0,0.0931692]
[1732811166947,0.00011265,95280.0,95278.0,0.0407052]
[1732811167146,0.033,95291.0,95290.0,0.052458]
[1732811167339,0.0322,95293.0,95290.0,0.3608]
[1732811167546,0.0322,95293.0,95292.0,0.052457]
[1732811168054,0.1,95300.0,95299.0,0.052453]
[1732811168274,0.10008201,95300.0,95299.0,0.052453]
[1732811169439,0.10008201,95300.0,95299.0,0.05252722]
[1732811171056,0.10108201,95300.0,95299.0,0.05252722]
[1732811171757,0.10108201,95300.0,95299.0,0.05352722]
[1732811171758,0.11008201,95300.0,95299.0,0.05352722]
[1732811172347,0.16253401,95300.0,95299.0,0.00107422]
[1732811172547,0.16253401,95300.0,95290.0,0.0008]
[1732811172548,0.052457,95291.0,95290.0,0.0008]
[1732811172757,0.052462,95284.0,95283.0,0.052461]
[1732811172955,0.052462,95284.0,95280.0,0.3608]
[1732811172956,0.052459,95290.0,95289.0,0.052458]
[1732811173142,0.052459,95290.0,95280.0,0.3608]
[1732811173143,1.5,95290.0,95280.0,0.3608]
[1732811173347,0.032,95289.0,95280.0,0.3608]
[1732811173643,0.052461,95285.0,95284.0,9.143e-05]
[1732811174348,0.527101,95285.0,95284.0,9.143e-05]
[1732811174546,0.052462,95283.0,95262.0,0.052473]
[1732811174851,0.052462,95283.0,95260.0,0.36286943]
[1732811174852,0.05247,95268.0,95265.0,0.052471]
[1732811175046,0.05247,95268.0,95260.0,0.3608]
[1732811175047,0.031,95267.0,95260.0,0.3608]
[1732811175356,0.031,95267.0,95266.0,0.052471]
[1732811175556,0.031,95267.0,95264.0,0.00012624]
[1732811175768,0.052472,95265.0,95264.0,0.00012624]
[1732811176759,0.085372,95265.0,95264.0,0.05259824]
[1732811177647,0.094372,95265.0,95264.0,0.05359824]
[1732811178255,0.093372,95265.0,95264.0,0.05259824]
[1732811178754,0.093372,95265.0,95264.0,0.00012624]
[1732811179457,0.093372,95265.0,95264.0,0.00112624]
[1732811179854,0.090372,95265.0,95264.0,0.00112624]
[1732811180058,0.093372,95265.0,95264.0,0.05359824]
[1732811180868,0.090372,95265.0,95264.0,0.05359824]
[1732811181050,0.094372,95265.0,95264.0,0.05359824]
[1732811181245,0.094372,95265.0,95264.0,0.00112624]
[1732811181656,0.093372,95265.0,95264.0,0.00012624]
[1732811183057,0.454172,95265.0,95264.0,0.00012624]
[1732811183273,0.454172,95265.0,95243.0,0.00206631]
[1732811183274,0.89471526,95265.0,95243.0,0.00206631]
[1732811183453,0.052485,95241.0,95239.0,0.00206631]
[1732811183646,0.3608,95252.0,95236.0,0.06634385]
[1732811183647,0.0302,95240.0,95236.0,0.052488]
[1732811183847,0.0302,95240.0,95231.0,0.00206631]
[1732811184052,0.082686,95240.0,95239.0,0.052486]
[1732811184556,0.0302,95240.0,95239.0,0.052486]
[1732811184755,0.0312,95240.0,95239.0,0.056486]
[1732811185459,0.0312,95240.0,95239.0,0.063486]
[1732811186460,0.001,95240.0,95239.0,0.059486]
[1732811186758,0.001,95240.0,95239.0,0.063486]
[1732811186959,0.001,95240.0,95239.0,0.095986]
[1732811187361,0.001,95240.0,95239.0,0.094986]
[1732811187858,0.01415568,95253.0,95239.0,0.094986]
[1732811187859,0.01415568,95253.0,95252.0,0.052479]
[1732811188065,0.3929,95254.0,95253.0,0.052478]
[1732811188362,0.7070926,95254.0,95239.0,0.01]
[1732811188565,0.413285,95240.0,95228.0,0.3568]
[1732811188755,0.413285,95240.0,95198.0,0.31459216]
[1732811188756,0.3608,95229.0,95194.0,0.00206631]
[1732811189059,0.3608,95200.0,95199.0,0.052508]
[1732811189762,0.3608,95200.0,95199.0,0.05263901]
[1732811190063,0.3608,95208.0,95206.0,0.052504]
[1732811190256,0.3608,95208.0,95204.0,0.052505]
[1732811190451,0.3608,95208.0,95207.0,0.052504]
[1732811190862,1.94164001,95228.0,95212.0,0.052501]
[1732811190863,0.16852,95213.0,95212.0,0.052501]
[1732811191161,0.44164001,95228.0,95218.0,0.052497]
[1732811191162,0.052495,95223.0,95218.0,0.052497]
[1732811191466,0.052495,95222.0,95217.0,0.052498]
[1732811191959,0.16852,95225.0,95224.0,0.052494]
[1732811192166,0.16852,95225.0,95208.0,0.0651]
[1732811192367,0.16852,95225.0,95218.0,0.001]
[1732811192368,0.052495,95222.0,95218.0,0.001]
[1732811193067,0.16852,95225.0,95220.0,0.052496]
[1732811193068,0.052496,95221.0,95220.0,0.052496]
[1732811194972,0.052496,95221.0,95220.0,0.053496]
[1732811195965,0.052496,95221.0,95220.0,0.001]
[1732811198668,0.367536,95221.0,95194.0,0.0322]
[1732811198865,0.052507,95201.0,95196.0,0.052509]
[1732811199266,0.3608,95206.0,95196.0,0.052509]
[1732811199267,0.052507,95200.0,95196.0,0.052509]
[1732811199467,0.052505,95205.0,95199.0,0.05263901]
[1732811199661,0.052505,95204.0,95199.0,0.05263901]
[1732811199870,0.052506,95203.0,95199.0,0.05263901]
[1732811200074,0.3608,95206.0,95199.0,0.05263901]
[1732811200075,0.052506,95202.0,95199.0,0.05263901]
[1732811200275,0.37520084,95206.0,95200.0,0.005]
[1732811200773,0.001,95201.0,95200.0,0.009]
[1732811200967,0.001,95201.0,95200.0,0.004]
[1732811201166,0.001,95201.0,95199.0,0.00613101]
[1732811201368,0.001,95202.0,95201.0,0.052507]
[1732811203070,0.3608,95215.0,95206.0,0.052504]
[1732811203272,0.3608,95215.0,95214.0,0.0525]
[1732811204475,0.3618,95215.0,95214.0,0.0525]
[1732811204871,0.3608,95215.0,95214.0,0.0565]
[1732811205070,0.3608,95215.0,95214.0,0.0585]
[1732811205272,0.37468858,95215.0,95214.0,0.0585]
[1732811205871,0.42718758,95215.0,95214.0,0.006]
[1732811206575,0.42718758,95215.0,95214.0,0.0585]
[1732811206778,0.37468858,95215.0,95214.0,0.0585]
[1732811211674,0.01388858,95215.0,95214.0,0.0585]
[1732811211877,0.3608,95225.0,95224.0,0.052494]
[1732811212883,0.37506835,95225.0,95224.0,0.052494]
[1732811213181,0.37606835,95225.0,95224.0,0.052494]
[1732811214678,0.37706835,95225.0,95224.0,0.052494]
[1732811217281,0.37706835,95225.0,95224.0,0.24098982]
[1732811217789,0.37706835,95225.0,95224.0,0.052494]
[1732811217991,0.3628,95225.0,95224.0,0.052494]
[1732811218193,0.002,95225.0,95224.0,0.052494]
[1732811218390,0.002,95225.0,95224.0,0.44602162]
[1732811218594,0.002,95225.0,95224.0,0.44600913]
[1732811218782,0.002,95225.0,95224.0,0.45421068]
[1732811219184,0.002,95225.0,95224.0,0.45421048]
[1732811220089,0.001,95225.0,95224.0,0.45521048]
[1732811220597,0.01424237,95231.0,95230.0,0.052491]
[1732811220816,0.052488,95236.0,95235.0,0.052488]
[1732811221183,0.052488,95236.0,95235.0,0.24117132]
[1732811221704,0.052488,95236.0,95235.0,0.052488]
[1732811222193,0.06665788,95236.0,95235.0,0.052488]
[1732811222397,0.01416988,95236.0,95235.0,0.052488]
[1732811222698,0.29986803,95241.0,95231.0,0.24117332]
[1732811222699,0.05249,95232.0,95231.0,0.24117332]
[1732811222887,0.3608,95232.0,95230.0,0.18868332]
[1732811223088,0.052493,95227.0,95226.0,0.24114866]
[1732811223287,0.052493,95227.0,95226.0,0.052493]
[1732811223496,1.5,95227.0,95226.0,0.052493]
[1732811223697,0.175,95230.0,95226.0,0.052493]
[1732811224001,0.175,95230.0,95215.0,0.0318]
[1732811224002,0.41429,95232.0,95231.0,0.05249]
[1732811224387,0.41429,95232.0,95227.0,0.18865566]
[1732811224388,0.3618,95232.0,95227.0,0.18865566]
[1732811224603,0.052492,95228.0,95227.0,0.24114766]
[1732811224991,0.41429,95232.0,95230.0,0.05249]
[1732811225507,0.41529,95232.0,95230.0,0.05249]
[1732811225800,0.3628,95232.0,95227.0,0.052492]
[1732811225995,0.052492,95229.0,95228.0,0.052491]
[1732811227303,0.053492,95229.0,95228.0,0.052491]
[1732811227501,0.001,95229.0,95228.0,0.052491]
[1732811227700,0.002,95229.0,95228.0,0.052491]
[1732811228806,0.001,95229.0,95228.0,0.052491]
[1732811229110,0.003,95229.0,95228.0,0.052491]
[1732811229696,0.002,95229.0,95228.0,0.052491]
[1732811229902,0.005,95229.0,95228.0,0.052491]
[1732811230406,0.01894867,95229.0,95228.0,0.052491]
[1732811231508,0.07143967,95229.0,95228.0,0.052491]
[1732811232099,0.01894867,95229.0,95228.0,0.052491]
[1732811235408,0.1438167,95229.0,95228.0,0.052491]
[1732811235706,0.1438167,95229.0,95223.0,0.18865566]
[1732811235906,0.1438167,95229.0,95211.0,0.31448398]
[1732811235907,0.3608,95224.0,95207.0,0.18865566]
[1732811236105,0.3608,95224.0,95200.0,0.31448398]
[1732811236106,0.12570757,95211.0,95204.0,0.18865566]
[1732811236309,0.12570273,95208.0,95202.0,0.00056]
[1732811236511,0.17820673,95206.0,95201.0,0.052507]
[1732811236704,0.12570273,95206.0,95199.0,0.00013101]
[1732811236906,0.12570273,95206.0,95204.0,0.052505]
[1732811237303,0.12570273,95205.0,95204.0,0.052505]
[1732811237606,0.12570273,95206.0,95204.0,0.052505]
[1732811237812,0.12570273,95205.0,95204.0,0.052505]
[1732811238111,0.001,95206.0,95204.0,0.057505]
[1732811238298,0.001,95206.0,95205.0,0.052505]
[1732811238504,0.052505,95205.0,95204.0,0.005]
[1732811238705,0.728425,95205.0,95204.0,0.005]
[1732811238909,0.052507,95200.0,95199.0,0.00013101]
[1732811239113,0.052507,95200.0,95179.0,0.28238718]
[1732811239114,0.052518,95180.0,95179.0,0.0308]
[1732811239308,0.3608,95180.0,95172.0,0.18865566]
[1732811239505,0.3608,95180.0,95171.0,0.0303]
[1732811239506,0.48642537,95180.0,95174.0,0.052522]
[1732811239711,0.052519,95179.0,95174.0,0.052522]
[1732811239900,0.052519,95179.0,95171.0,0.0303]
[1732811239901,0.3608,95180.0,95176.0,0.052521]
[1732811240101,0.05252,95178.0,95172.0,9.091e-05]
[1732811240311,0.05252,95178.0,95174.0,0.052522]
[1732811240907,0.05252,95178.0,95174.0,0.057522]
[1732811241208,0.001,95179.0,95174.0,0.005]
[1732811241405,0.001,95179.0,95176.0,0.052521]
[1732811241607,0.3608,95180.0,95176.0,0.052521]
[1732811241608,0.001,95178.0,95176.0,0.052521]
[1732811241808,0.001,95178.0,95174.0,0.005]
[1732811241809,0.052521,95175.0,95174.0,0.005]
[1732811241999,0.052521,95175.0,95174.0,0.013]
[1732811243306,0.052521,95175.0,95172.0,9.091e-05]
[1732811243307,0.052522,95173.0,95172.0,9.091e-05]
[1732811243501,0.222562,95173.0,95172.0,9.091e-05]
[1732811244504,0.223562,95173.0,95172.0,9.091e-05]
[1732811245917,0.223562,95173.0,95172.0,0.00509091]
[1732811245918,0.224562,95173.0,95172.0,0.00509091]
[1732811247611,0.224562,95173.0,95156.0,0.0624]
[1732811247612,1.22910401,95173.0,95143.0,0.3608]
[1732811247799,1.22910401,95173.0,95130.0,0.3608]
[1732811247800,0.3608,95151.0,95136.0,0.064]
[1732811248001,0.3608,95151.0,95137.0,0.052542]
[1732811248002,0.1268696,95140.0,95137.0,0.052542]
[1732811248207,0.05254,95141.0,95137.0,0.052542]
[1732811248415,0.052537,95146.0,95140.0,9.992e-05]
[1732811248703,0.052537,95146.0,95140.0,0.05263992]
[1732811249115,0.1268696,95147.0,95140.0,9.992e-05]
[1732811249317,0.41334,95141.0,95140.0,9.992e-05]
[1732811249814,0.3608,95141.0,95140.0,0.05264092]
[1732811250523,0.3608,95141.0,95140.0,9.992e-05]
[1732811250829,0.3618,95141.0,95140.0,9.992e-05]
[1732811251118,0.41434,95141.0,95140.0,0.00509992]
[1732811251812,0.41434,95141.0,95100.0,0.152562]
[1732811251813,0.052548,95126.0,95120.0,0.147151]
[1732811252009,0.3608,95123.0,95120.0,0.147151]
[1732811252207,0.3608,95123.0,95122.0,0.05255]
[1732811253518,0.3618,95123.0,95122.0,0.05255]
[1732811253712,0.37626281,95123.0,95122.0,0.05255]
[1732811254614,0.001,95123.0,95122.0,0.05255]
[1732811254817,0.002,95123.0,95122.0,0.05255]
[1732811255515,0.17668,95125.0,95124.0,0.052549]
[1732811255817,0.53748,95132.0,95131.0,0.052545]
[1732811256212,0.60433702,95132.0,95131.0,0.052545]
[1732811256519,0.60433702,95132.0,95121.0,0.00012023]
[1732811256520,0.052548,95127.0,95126.0,0.052547]
[1732811257419,0.55339203,95132.0,95124.0,0.002]
[1732811257618,0.052549,95125.0,95124.0,0.002]
[1732811258215,0.001,95127.0,95126.0,0.002]
[1732811258216,0.054548,95127.0,95126.0,0.002]
[1732811258415,0.054548,95127.0,95126.0,0.054548]
[1732811258416,0.002,95127.0,95126.0,0.054548]
[1732811258622,0.001,95127.0,95126.0,0.054548]
[1732811259118,0.55335203,95132.0,95126.0,0.052548]
[1732811259119,0.60589703,95132.0,95126.0,0.052548]
[1732811259324,0.60533702,95132.0,95126.0,0.052548]
[1732811259622,0.052545,95131.0,95126.0,0.052548]
[1732811260226,0.55339203,95132.0,95125.0,0.0641]
[1732811260521,0.19099202,95132.0,95131.0,0.052545]
[1732811260723,0.01431202,95132.0,95131.0,0.413345]
[1732811260922,0.3608,95153.0,95145.0,0.052538]
[1732811261125,0.18372,95167.0,95145.0,0.052538]
[1732811261335,0.00056001,95167.0,95152.0,0.052534]
[1732811261513,0.01472608,95167.0,95166.0,0.052526]
[1732811261820,0.3105896,95180.0,95166.0,0.3608]
[1732811262126,0.052522,95174.0,95173.0,0.052522]
[1732811262327,0.05260691,95174.0,95173.0,0.052522]
[1732811262623,0.05260691,95174.0,95155.0,0.3608]
[1732811262624,8.491e-05,95174.0,95155.0,0.3608]
[1732811262925,8.491e-05,95174.0,95169.0,0.052524]
[1732811262926,0.052523,95172.0,95169.0,0.052524]
[1732811263121,8.491e-05,95174.0,95169.0,0.052524]
[1732811263328,0.052524,95170.0,95169.0,0.052524]
[1732811263717,8.491e-05,95174.0,95156.0,0.18372]
[1732811263918,0.3608,95168.0,95167.0,0.052526]
[1732811264526,8.491e-05,95174.0,95167.0,0.052526]
[1732811264720,8.491e-05,95174.0,95173.0,0.052522]
[1732811265625,0.00108491,95174.0,95173.0,0.052522]
[1732811266729,0.3608,95186.0,95185.0,0.052516]
[1732811267726,0.36090146,95186.0,95185.0,0.052516]
[1732811268119,0.36190146,95186.0,95185.0,0.052516]
[1732811268728,0.36290146,95186.0,95185.0,0.052516]
[1732811268927,0.36490146,95186.0,95185.0,0.052516]
[1732811271437,0.36190146,95186.0,95185.0,0.052516]
[1732811271641,0.36290146,95186.0,95185.0,0.052516]
[1732811272039,0.36190146,95186.0,95185.0,0.052516]
[1732811273235,0.36090146,95186.0,95185.0,0.052516]
[1732811273431,0.36190146,95186.0,95185.0,0.052516]
[1732811274436,0.36290146,95186.0,95185.0,0.052516]
[1732811274625,0.36190146,95186.0,95185.0,0.052516]
[1732811274829,0.36490146,95186.0,95185.0,0.052516]
[1732811275036,0.36390146,95186.0,95185.0,0.052516]
[1732811275726,0.36490146,95186.0,95185.0,0.052516]
[1732811276132,0.36490146,95186.0,95185.0,0.05261998]
[1732811277240,0.36290146,95186.0,95185.0,0.05261998]
[1732811277435,0.36190146,95186.0,95185.0,0.05261998]
[1732811278134,0.36090146,95186.0,95185.0,0.05261998]
[1732811279427,0.052521,95175.0,95174.0,0.00056]
[1732811279632,0.052521,95175.0,95150.0,0.25158718]
[1732811279633,0.54444,95175.0,95153.0,0.18865566]
[1732811279926,0.54444,95175.0,95150.0,0.4876696]
[1732811279927,1.5,95174.0,95154.0,0.01314063]
[1732811280139,0.052517,95182.0,95181.0,0.052518]
[1732811280436,0.36132547,95186.0,95185.0,0.052516]
[1732811280437,0.00010146,95186.0,95185.0,0.052516]
[1732811281037,0.052506,95202.0,95201.0,0.052507]
[1732811281236,0.3608,95204.0,95196.0,0.052509]
[1732811281237,0.05251,95197.0,95196.0,0.052509]
[1732811281434,0.052513,95192.0,95191.0,0.052511]
[1732811282027,0.052516,95187.0,95186.0,0.052514]
[1732811282535,0.3608,95193.0,95182.0,0.0943]
[1732811283035,0.05251,95196.0,95195.0,0.05251]
[1732811283232,0.004,95197.0,95196.0,0.05251]
[1732811284241,7.364e-05,95199.0,95198.0,0.052508]
[1732811284628,7.364e-05,95199.0,95187.0,0.3608]
[1732811284836,0.052511,95195.0,95187.0,0.3608]
[1732811285038,0.052514,95188.0,95187.0,0.413314]
[1732811285235,0.052511,95193.0,95192.0,0.05251]
[1732811285429,0.052514,95189.0,95188.0,0.052514]
[1732811285932,0.3608,95195.0,95182.0,0.0943]
[1732811286131,0.3608,95195.0,95184.0,0.052516]
[1732811286132,0.052516,95185.0,95184.0,0.052516]
[1732811286330,1.5,95189.0,95182.0,0.0943]
[1732811286535,0.1268696,95192.0,95182.0,0.0943]
[1732811286536,0.052513,95190.0,95182.0,0.0943]
[1732811286837,0.1268696,95192.0,95186.0,0.052515]
[1732811287039,1.5,95191.0,95182.0,0.0943]
[1732811287240,0.1268696,95192.0,95184.0,0.052516]
[1732811287537,0.052517,95183.0,95168.0,0.18865566]
[1732811287743,0.052517,95183.0,95180.0,0.052518]
[1732811288040,0.052517,95183.0,95182.0,0.001]
[1732811288743,0.3608,95187.0,95181.0,0.00010175]
[1732811288744,0.052517,95182.0,95181.0,0.00010175]
[1732811290043,0.367717,95182.0,95181.0,0.00010175]
[1732811290251,0.052528,95164.0,95162.0,0.18865566]
[1732811290549,0.052533,95154.0,95153.0,0.18874061]
[1732811290738,0.052533,95154.0,95143.0,0.37938398]
[1732811290739,0.80224,95154.0,95146.0,0.18874061]
[1732811291040,0.80224,95154.0,95140.0,0.25158718]
[1732811291041,0.12560386,95147.0,95135.0,0.44032779]
[1732811291241,0.3608,95153.0,95135.0,8.989e-05]
[1732811291242,0.3608,95140.0,95135.0,8.989e-05]
[1732811291636,0.052542,95137.0,95135.0,8.989e-05]
[1732811291839,7.826e-05,95136.0,95135.0,8.989e-05]
[1732811293544,7.826e-05,95136.0,95135.0,0.00308989]
[1732811294242,7.826e-05,95136.0,95135.0,8.989e-05]
[1732811294451,0.00107826,95136.0,95135.0,0.00308989]
[1732811294842,0.00207826,95136.0,95135.0,0.00308989]
[1732811297044,0.80280001,95154.0,95145.0,0.052538]
[1732811297244,1.00708001,95154.0,95152.0,0.052534]
[1732811297443,1.00652,95154.0,95152.0,0.052534]
[1732811297642,1.0204122,95154.0,95152.0,0.052534]
[1732811297849,1.0204122,95154.0,95136.0,0.0319]
[1732811298150,0.00012484,95151.0,95147.0,0.052536]
[1732811299047,0.00012484,95151.0,95145.0,0.002]
[1732811299252,0.413337,95146.0,95145.0,0.002]
[1732811299443,0.052543,95136.0,95135.0,8.989e-05]
[1732811299652,0.8804,95136.0,95107.0,0.0322]
[1732811299846,0.8804,95136.0,95096.0,0.0324]
[1732811299847,0.052557,95111.0,95096.0,0.0324]
[1732811300140,0.1268696,95110.0,95101.0,0.052562]
[1732811300558,0.1268696,95110.0,95107.0,7.722e-05]
[1732811300740,0.052557,95111.0,95107.0,7.722e-05]
[1732811301747,0.001,95110.0,95107.0,7.722e-05]
[1732811302647,0.001,95110.0,95108.0,0.052558]
[1732811303244,0.002,95110.0,95108.0,0.052558]
[1732811303455,0.001,95110.0,95108.0,0.052558]
[1732811303753,0.01365899,95130.0,95122.0,0.05255]
[1732811304046,0.12558974,95154.0,95122.0,0.05255]
[1732811304047,0.256868,95127.0,95122.0,0.05255]
[1732811304249,0.1268696,95132.0,95112.0,0.3608]
[1732811304752,0.1268696,95132.0,95126.0,0.052548]
[1732811304940,0.1268696,95132.0,95112.0,0.3608]
[1732811305142,0.20432,95133.0,95114.0,0.052555]
[1732811305444,0.00056001,95138.0,95137.0,0.052542]
[1732811305641,0.3608,95144.0,95137.0,0.052542]
[1732811306243,0.3608,95144.0,95142.0,0.052539]
[1732811306947,0.413338,95144.0,95142.0,0.052539]
[1732811307644,0.3608,95144.0,95142.0,0.054539]
[1732811308455,0.3608,95144.0,95142.0,0.053539]
[1732811308846,0.3618,95144.0,95142.0,0.055539]
[1732811309250,0.3618,95144.0,95142.0,0.053539]
[1732811309451,0.3608,95144.0,95142.0,0.055539]
[1732811310151,0.3608,95158.0,95150.0,0.052535]
[1732811310353,0.3608,95172.0,95150.0,0.052535]
[1732811310549,0.37480008,95172.0,95151.0,0.4264]
[1732811310753,0.37480008,95172.0,95164.0,0.052527]
[1732811310754,0.052527,95166.0,95164.0,0.052527]
[1732811311357,0.00010082,95165.0,95164.0,0.052527]
[1732811311852,0.00010082,95165.0,95151.0,0.4264]
[1732811312055,0.00010082,95165.0,95160.0,0.052529]
[1732811312359,0.00010082,95165.0,95151.0,0.0656]
[1732811312360,0.05253,95159.0,95151.0,0.0656]
[1732811312552,0.05253,95159.0,95156.0,0.052531]
[1732811312749,0.3608,95164.0,95151.0,0.0656]
[1732811313255,0.3608,95164.0,95162.0,0.052528]
[1732811314661,0.3608,95164.0,95151.0,0.4284]
[1732811314662,0.3618,95164.0,95151.0,0.4284]
[1732811314857,0.3618,95164.0,95163.0,0.052528]
[1732811315965,0.001,95164.0,95163.0,0.052528]
[1732811316259,0.002,95164.0,95163.0,0.052528]
[1732811316864,0.001,95164.0,95163.0,0.052528]
[1732811317767,0.00010082,95165.0,95160.0,0.3608]
[1732811317768,0.00010082,95165.0,95164.0,0.052527]
[1732811318168,0.00010082,95165.0,95154.0,0.03]
[1732811318381,0.00010082,95165.0,95151.0,0.118134]
[1732811318382,0.052534,95152.0,95151.0,0.118134]
[1732811318684,0.05254,95142.0,95141.0,0.05254]
[1732811318978,0.05254,95142.0,95121.0,0.052551]
[1732811318979,0.3608,95143.0,95124.0,0.0615]
[1732811319175,0.052541,95140.0,95138.0,0.052541]
[1732811319485,0.052541,95140.0,95125.0,0.052549]